[Event "US Masters 2024"]
[Site "Charlotte"]
[Date "2024.11.29"]
[Round "4.21"]
[White "Mishra, Abhimanyu"]
[Black "Gauri, Shankar"]
[Result "1/2-1/2"]
[ECO "E48"]
[WhiteElo "2616"]
[BlackElo "2367"]
[Annotator "TA"]
[PlyCount "86"]
[EventDate "2024.09.23"]
[EventType "swiss"]
[EventCountry "USA"]
[SourceTitle "playchess.com"]
[Source "ChessBase"]
[SourceQuality "1"]
[TimeControl "5400+30"]

{[%evp 11,86,0,7,-8,-6,-18,-14,-21,-25,-31,0,0,5,-42,18,25,29,31,26,0,0,-7,-23,-35,-26,-37,-87,-60,-4,-58,-64,-77,-79,-88,85,92,87,80,93,90,118,124,124,66,69,65,63,64,66,66,66,63,70,35,76,26,19,11,11,18,46,46,60,50,79,0,0,0,0,0,0,0,0,0,0,0,0]} 1. d4 {[%emt 0:00:02]} Nf6 {[%emt 0:16:14]} 2. c4 {[%emt 0:00:53]} e6 {[%emt 0:00:05]} 3. Nc3 {[%emt 0:00:13]} Bb4 {[%emt 0:00:30]} 4. e3 {[%emt 0:00:33]} O-O {[%emt 0:01:09]} 5. Bd3 {[%emt 0:00:59]} d5 {[%emt 0:00:08]} 6. cxd5 {[%emt 0:00:56]} exd5 {[%emt 0:00:18]} 7. a3 {[%emt 0:00:10]} Bd6 {[%emt 0:05:25]} 8. Qc2 {[%emt 0:00:22]} c6 {[%emt 0:00:56]} 9. Nge2 {[%emt 0:01:31]} Re8 {[%emt 0:05:26]} 10. Bd2 {[%emt 0:03:44]} a5 {[%emt 0:17:24]} 11. f3 {[%emt 0:11:56]} c5 {[%emt 0:05:48]} 12. g4 {[%emt 0:11:52]} (12. O-O $11 {is more appropriate.}) 12... g6 {[%emt 0:22:14]} (12... Nc6 $15 13. Nb5 c4) 13. dxc5 $11 {[%emt 0:13:25]} Bxc5 {[%emt 0:01:23]} 14. g5 {[%emt 0:07:03]} Nh5 {[%emt 0:00:26]} 15. e4 {[%emt 0:00:46]} dxe4 {[%emt 0:09:05]} 16. Bxe4 {[%emt 0:06:06]} Be6 {[%emt 0:02:36]} 17. O-O-O $1 {[%emt 0:04:16][%cal Oe2g3]} Nd7 $1 {[%emt 0:03:59][%cal Oa5a4]} 18. Ng3 {[%emt 0:11:58]} Nxg3 {[%emt 0:01:42]} 19. hxg3 {[%emt 0:00:01][%cal Od2f4]} Rc8 {[%emt 0:00:34]} (19... Bd4 $1 $15 20. Bf4 Bxc3 21. bxc3 (21. Qxc3 $2 Rc8 $19) 21... Qe7) 20. Bf4 {[%emt 0:08:42]} ({White should play} 20. Bxb7 $11 Qb6 21. Bxc8 Rxc8 22. g4) 20... Qb6 $15 {[%emt 0:02:20][%cal Oc5b4] ...Bb4! would now be deadly.} 21. Rxd7 {[%emt 0:04:19]} Bxd7 {[%emt 0:00:01]} 22. Nd5 {[%emt 0:00:30][%cal Oc1b1] [#]} Bd4 $2 {[%emt 0:01:30]} 23. Nxb6 $16 {[%emt 0:01:06]} Bxb6 {[%emt 0:00:17] [#]} 24. Bxb7 $1 {[%emt 0:06:35]} Rxc2+ {[%emt 0:00:12]} (24... Be3+ 25. Bxe3) 25. Kxc2 {[%emt 0:00:02]} Bf5+ {[%emt 0:01:45]} 26. Kc3 {[%emt 0:01:16]} Rd8 {[%emt 0:00:41] Wards off Rd1} 27. Re1 {[%emt 0:03:00]} ({White should try} 27. Rh2 $16) 27... Bd4+ $14 {[%emt 0:00:25]} 28. Kb3 {[%emt 0:00:30]} Be6+ {[%emt 0:00:56]} 29. Kc2 {[%emt 0:00:09]} a4 {[%emt 0:00:02]} 30. Kb1 {[%emt 0:01:06]} Bb3 {[%emt 0:01:13]} 31. Be4 {[%emt 0:00:25]} Re8 {[%emt 0:00:29]} 32. Rc1 {[%emt 0:01:21]} Be5 {[%emt 0:00:38] [#]} 33. Bc6 {[%emt 0:00:34]} ({Better is} 33. Rc5 $1 $16 Bxf4 34. gxf4) 33... Re6 $11 {[%emt 0:00:36]} 34. Bd7 {[%emt 0:00:33]} Re7 {[%emt 0:00:16] And now ...Bxf4 would win.} 35. Rc8+ {[%emt 0:00:33]} Kg7 {[%emt 0:00:01] White must now prevent ...Bxf4.} 36. Re8 $1 {[%emt 0:00:19]} Rxd7 {[%emt 0:00:51]} 37. Bxe5+ $14 {[%emt 0:00:20][%mdl 4096] Endgame. KRB-KRB} (37. Rxe5 f6 38. gxf6+ Kxf6 $11) 37... f6 {[%emt 0:00:01] ( -> ...Rd1#)} 38. gxf6+ {[%emt 0:00:47]} ({Much worse is} 38. Bxf6+ Kf7 39. Rd8 Rxd8 40. Bxd8 Ke6 $14) (38. Rd8 $16 Rxd8 39. Bxf6+ Kf7 40. Bxd8) 38... Kf7 $11 {[%emt 0:00:10][%cal Rd7d1] The position is equal.} 39. Rc8 {[%emt 0:00:32]} (39. Re7+ {simplifies} Rxe7 40. fxe7 Kxe7 41. Kc1) 39... Rd1+ {[%emt 0:00:41]} 40. Rc1 {[%emt 0:00:02]} Ba2+ {[%emt 0:00:12]} 41. Kc2 $1 {[%emt 0:00:36]} Bb3+ {[%emt 0:00:03]} 42. Kb1 {[%emt 0:00:07]} Ba2+ {[%emt 0:00:17]} 43. Kc2 $1 {[%emt 0:00:16]} Bb3+ {[%emt 0:00:03] Weighted Error Value: White=0.16 (very precise) /Black=0.15 (very precise) .  Mistake:       	White=5     	Black=3      Inaccurate:     	White=2     	Black=3      OK:         	White=7     	Black=15     Best:        	White=6     	Black=6      Strong:       	White=5     	Black=1} 1/2-1/2

[Event "US Masters 2024"]
[Site "Charlotte"]
[Date "2024.11.29"]
[Round "4.22"]
[White "Bok, Benjamin"]
[Black "Sargsyan, Anna M."]
[Result "1-0"]
[ECO "A14"]
[WhiteElo "2593"]
[BlackElo "2361"]
[Annotator "TA"]
[PlyCount "99"]
[EventDate "2024.09.23"]
[EventType "swiss"]
[EventCountry "USA"]
[SourceTitle "playchess.com"]
[Source "ChessBase"]
[SourceQuality "1"]
[TimeControl "5400+30"]

{[%evp 39,99,61,127,137,111,53,53,56,60,56,67,76,129,112,123,133,190,108,147,139,187,179,182,154,145,155,169,147,435,327,314,264,260,257,519,534,602,347,318,340,351,342,337,307,475,446,538,541,714,675,29985,29986,29985,29982,5938,2017,1217,0,29982,29983,29989,29990]} 1. Nf3 {[%emt 0:03:54]} d5 {[%emt 0:06:46]} 2. g3 {[%emt 0:00:08]} Nf6 {[%emt 0:00:37]} 3. Bg2 {[%emt 0:00:06]} e6 {[%emt 0:00:04]} 4. O-O {[%emt 0:03:02]} Be7 {[%emt 0:00:12]} 5. c4 {[%emt 0:01:20]} O-O {[%emt 0:00:18]} 6. b3 {[%emt 0:00:43]} b6 {[%emt 0:02:53]} 7. cxd5 {[%emt 0:05:38]} exd5 {[%emt 0:03:21]} 8. Bb2 {[%emt 0:00:33]} Bb7 {[%emt 0:00:27]} 9. e3 {[%emt 0:00:37] A14: English Opening: 1...e6 with b3 by White.} Nbd7 {[%emt 0:00:41]} 10. Nc3 {[%emt 0:00:18]} Ne4 {[%emt 0:05:49]} 11. Ne2 {[%emt 0:08:37]} Bf6 {[%emt 0:02:08]} 12. Bxf6 {[%emt 0:05:49]} Ndxf6 {[%emt 0:00:31]} 13. d3 {[%emt 0:03:24]} Nd6 {[%emt 0:01:47]} 14. b4 $146 {[%emt 0:19:26]} ({Predecessor:} 14. Nf4 c5 15. Rc1 Rc8 16. Ne5 Qe7 17. Ng4 Nde8 18. Re1 Nxg4 19. Qxg4 Nf6 20. Qf5 {1-0 Kovalyov,A (2644)-Javakhadze,Z (2438) Southwest op 84th 2018 (4)}) 14... a5 {[%emt 0:06:49]} 15. a3 {[%emt 0:00:06]} Qe7 {[%emt 0:02:45]} 16. Qc2 {[%emt 0:00:55]} axb4 {[%emt 0:09:01]} 17. axb4 {[%emt 0:00:05]} Nf5 {[%emt 0:00:11]} 18. b5 {[%emt 0:07:45]} Rxa1 {[%emt 0:13:05]} 19. Rxa1 {[%emt 0:00:04]} Ng4 {[%emt 0:00:14]} 20. Qd2 {[%emt 0:02:41]} (20. Rc1 $16 Rc8) 20... Ra8 {[%emt 0:05:45]} ({Better is} 20... Nf6 $14) 21. Rxa8+ $16 {[%emt 0:02:02]} Bxa8 {[%emt 0:00:01]} 22. h3 {[%emt 0:01:14]} (22. Qa2 $16 Qd8 23. Bh3) 22... Nf6 $1 $14 {[%emt 0:00:34]} 23. Qa2 {[%emt 0:06:24]} Qd8 {[%emt 0:04:39]} 24. g4 {[%emt 0:15:23]} Nd6 {[%emt 0:00:09]} 25. Nfd4 {[%emt 0:00:26]} g5 {[%emt 0:05:36]} (25... h6 $142) 26. Nc3 {[%emt 0:01:02]} Kh8 {[%emt 0:02:11]} 27. Nc2 {[%emt 0:05:07]} (27. Bxd5 Nxd5 28. Nxd5 Nxb5 $18) 27... Bb7 {[%emt 0:02:37]} (27... Kg7 $16 28. Nd4 (28. Nxd5 Bxd5 29. Bxd5 Nxb5 $11) 28... Kh8) 28. Qa4 {[%emt 0:00:09]} (28. Nxd5 $18 Bxd5 29. Bxd5) 28... Kg7 {[%emt 0:01:26] [#]} 29. Qd4 $1 {[%emt 0:00:33]} Qd7 {[%emt 0:00:38]} (29... Qe8 $16) 30. Qe5 $18 {[%emt 0:01:49]} (30. Nxd5 Bxd5 31. e4 (31. Bxd5 $2 Nxb5 32. Qb2 Qxd5 $19) 31... Qxb5 $17 (31... Nxb5 32. Qe5 $11)) 30... h6 {[%emt 0:02:16]} 31. Nd4 {[%emt 0:00:19]} (31. Nxd5 $2 Bxd5 32. e4 (32. Bxd5 $2 Qxb5 33. Ne1 Qxd5 $19) 32... Be6 $19) 31... Qe8 {[%emt 0:01:23] [#]} 32. f4 $1 {[%emt 0:04:42]} Kg6 {[%emt 0:05:03]} 33. Kh2 {[%emt 0:01:38]} (33. Bxd5 $2 Nxd5 34. Nxd5 Bxd5 35. Qxe8 Nxe8 $19) 33... Qa8 $2 {[%emt 0:03:18][%mdl 8192]} (33... gxf4 $16 {was necessary.} 34. Qxe8 (34. Qxf4 Qe7 $16) (34. exf4 Qd8 $16) 34... Ndxe8) 34. fxg5 {[%emt 0:00:33]} hxg5 {[%emt 0:00:14]} 35. Nf3 {[%emt 0:00:49]} Nh7 {[%emt 0:01:03]} 36. Qe7 {[%emt 0:00:15]} f6 $2 {[%emt 0:03:26]} (36... d4 37. Ne4 (37. exd4 $2 Bxf3 38. Qxc7 Nxb5 $19) 37... Bxe4 38. dxe4 dxe3 39. Qxc7 Qa3) 37. Qxc7 $18 {[%emt 0:00:22]} d4 {[%emt 0:00:10]} 38. Ne5+ {[%emt 0:00:55]} (38. exd4 Bxf3 39. Bxf3 (39. Qxd6 Bxg2 40. d5 Bf3 $19) 39... Qxf3 40. Qxd6 Qf2+ (40... Qxd3 41. Qc6 $11) 41. Kh1 Qe1+ 42. Kg2 Qd2+ (42... Qxc3 $2 43. Qxb6 Qc2+ 44. Kg1 $19) 43. Kg1 Qe1+ (43... Qxc3 $2 44. Qxb6 Qxd3 45. Kh2 $19) 44. Kg2 Qxc3 45. Qxb6 Qd2+ (45... Qxd3 46. Qc6 $11) 46. Kf3 Qxd3+ 47. Kf2 Qxh3 $19) 38... Kh6 {[%emt 0:01:18]} 39. Nf7+ {[%emt 0:00:34]} (39. exd4 Bxg2 40. Qxd6 Bh1 $16) (39. Qxd6 dxc3 40. Bxb7 Qxb7 $11) 39... Nxf7 {[%emt 0:00:23]} 40. Bxb7 {[%emt 0:00:05]} (40. Qxb7 $2 {loses.} Qxb7 41. Nd5 dxe3 (41... Qb8+ $2 42. Kh1 $19) 42. Nxe3 Qc7+ 43. Kg1 Qc1+ 44. Nf1 Qc5+ 45. Kh1 Qxb5 $19) 40... Qa1 {[%emt 0:02:37]} 41. exd4 {[%emt 0:00:47]} Qc1 {[%emt 0:00:03]} (41... Nh8 $142 42. Nd5 Qb2+ 43. Kg3 Qxd4) 42. Bg2 {[%emt 0:00:35]} Qe3 {[%emt 0:02:21]} 43. Ne4 {[%emt 0:00:25]} ({And not} 43. Qxf7 Qf4+ 44. Kh1 Qc1+ 45. Kh2 Qf4+ 46. Kg1 Qxd4+ 47. Kf1 Qxc3 $11) 43... Kg7 {[%emt 0:01:47]} 44. Ng3 {[%emt 0:00:26]} Qxd3 {[%emt 0:00:05]} 45. Nf5+ {[%emt 0:00:32]} Kg8 {[%emt 0:00:44]} 46. Qb8+ {[%emt 0:00:28]} Nf8 {[%emt 0:00:07]} 47. Ne7+ {[%emt 0:00:09]} (47. Qxb6 $142 Qd2 48. Qxf6 Qf4+ 49. Kg1 Qc1+ 50. Bf1 Ne6 51. Qxe6 Qa3 52. b6) 47... Kg7 $18 {[%emt 0:00:07]} 48. Nf5+ {[%emt 0:00:04]} (48. Qxb6 $18 Nh6 49. Qc7) 48... Kg8 {[%emt 0:00:01]} 49. Qxb6 {[%emt 0:00:24]} Qd2 {[%emt 0:00:36]} 50. Qxf6 {[%emt 0:00:57]} 1-0

[Event "US Masters 2024"]
[Site "Charlotte"]
[Date "2024.11.29"]
[Round "4.23"]
[White "Canty, James"]
[Black "Zeltsan, Joseph"]
[Result "0-1"]
[ECO "D02"]
[WhiteElo "2189"]
[BlackElo "2405"]
[Annotator "TA"]
[PlyCount "112"]
[EventDate "2024.09.23"]
[EventType "swiss"]
[EventCountry "USA"]
[SourceTitle "playchess.com"]
[Source "ChessBase"]
[SourceQuality "1"]
[TimeControl "5400+30"]

{[%evp 11,112,15,13,0,0,1,14,4,7,10,7,6,21,16,20,16,19,11,23,7,12,0,0,0,0,0,31,-56,-54,-75,-78,-102,-107,-120,-35,-95,-83,-87,-85,-88,-75,-131,-124,-275,-251,-345,-335,-392,-380,-554,-316,-300,-268,-235,-242,-298,-258,-297,-278,-281,-283,-301,-285,-273,-177,-230,-172,-280,-193,-190,-170,-284,-219,-338,-310,-294,-96,-258,-146,-154,-152,-407,-335,-345,-347,-318,-308,-434,-422,-420,-408,-404,-160,-29973,-29974,-29974,-29975,-29975,-29976,-29976,-29975,-29992,-29993]} 1. d4 {[%emt 0:01:51]} d5 {[%emt 0:14:49]} 2. Nf3 {[%emt 0:01:03]} Nf6 {[%emt 0:00:42]} 3. Bf4 {[%emt 0:00:08]} c5 {[%emt 0:00:51]} 4. e3 {[%emt 0:00:04]} Nc6 {[%emt 0:00:07]} 5. Nbd2 {[%emt 0:00:04]} Bg4 {[%emt 0:00:13]} 6. c3 {[%emt 0:00:04]} e6 {[%emt 0:00:04]} 7. Qa4 {[%emt 0:00:04]} Nd7 {[%emt 0:00:18]} 8. Bb5 {[%emt 0:00:06]} Qc8 {[%emt 0:01:24]} 9. h3 {[%emt 0:00:15]} Bh5 {[%emt 0:01:09]} 10. g4 {[%emt 0:00:04]} Bg6 {[%emt 0:00:04]} 11. Nh4 {[%emt 0:00:03]} Nb6 {[%emt 0:09:06]} 12. Qd1 {[%emt 0:02:01]} a6 {[%emt 0:05:10]} 13. Nxg6 {[%emt 0:00:04]} hxg6 {[%emt 0:00:02]} 14. Be2 {[%emt 0:00:09]} cxd4 {[%emt 0:01:01]} 15. exd4 {[%emt 0:06:09]} Qd7 {[%emt 0:01:24]} 16. Kf1 {[%emt 0:01:03]} Bd6 {[%emt 0:00:30]} 17. Be3 {[%emt 0:00:05]} Qc7 {[%emt 0:11:02]} 18. Kg2 {[%emt 0:07:03]} Bf4 {[%emt 0:01:34]} 19. Bf3 {[%emt 0:08:41]} (19. Bxf4 $14 Qxf4 20. a4) 19... g5 $15 {[%emt 0:05:27]} (19... Bxe3 {simplifies} 20. fxe3 O-O-O 21. Qe1 e5) 20. Rc1 {[%emt 0:01:07]} Ne7 {[%emt 0:06:43]} 21. b3 {[%emt 0:07:12]} Ng6 {[%emt 0:01:22]} 22. c4 {[%emt 0:00:16]} Qd8 {[%emt 0:03:09]} ({Black should try} 22... Rc8 $17 23. Qe2 e5 24. dxe5 (24. Bxd5 $2 Nh4+ 25. Kg1 Nxd5 $19) 24... d4 25. Bxd4 Nh4+ (25... Bxe5 $2 26. Bxe5 Nxe5 27. Qe4 $18) 26. Kf1 Bxd2 (26... Nxf3 27. Qxf3 Bxd2 28. Rd1 $17)) 23. c5 {[%emt 0:06:04]} (23. Be2 $15) 23... Nc8 $17 {[%emt 0:01:27]} 24. Be2 {[%emt 0:00:04]} Nh4+ {[%emt 0:09:41]} 25. Kg1 {[%emt 0:01:08]} Qf6 {[%emt 0:00:43]} 26. Bd3 {[%emt 0:01:50]} ({Better is} 26. b4) 26... Ne7 {[%emt 0:00:16]} 27. b4 $2 {[%emt 0:06:19]} (27. Be2 $17) 27... Nc6 $19 {[%emt 0:02:22][%csl LRb4,LRd4]} 28. Nf1 {[%emt 0:23:20]} Bxe3 {[%emt 0:03:59]} (28... Nxb4 29. Rb1 Nc6 (29... Nxa2 30. Qa4+ Kf8 31. Qxa2 $11) 30. Be2 $19) 29. fxe3 {[%emt 0:00:32]} Nxd4 {[%emt 0:00:06] A dynamic duo of knights.} (29... Nxb4 30. Be2 Nc6 (30... Nxa2 $2 31. Qa4+ Ke7 32. Qxa2 $18) 31. Rh2 $17) 30. Nd2 {[%emt 0:01:38]} (30. Be2 $142 Ndf3+ (30... Nxe2+ $2 31. Qxe2 O-O 32. Ng3 $19) 31. Bxf3 Nxf3+ 32. Kg2) 30... Ndf3+ {[%emt 0:04:38]} 31. Nxf3 {[%emt 0:00:43]} Nxf3+ {[%emt 0:00:02]} 32. Kf2 {[%emt 0:01:18]} Nh4+ {[%emt 0:00:41]} 33. Ke2 {[%emt 0:00:42]} O-O {[%emt 0:01:24]} 34. Bb1 {[%emt 0:03:00]} Qf3+ {[%emt 0:02:02]} 35. Kd2 {[%emt 0:00:53]} Qg3 {[%emt 0:00:02]} 36. Rc3 {[%emt 0:01:26]} Rfd8 {[%emt 0:00:57]} (36... a5 37. b5 $19) 37. Kc2 {[%emt 0:00:07]} d4 {[%emt 0:02:54]} 38. Rd3 {[%emt 0:00:29]} (38. exd4 Qf2+ 39. Kb3) 38... Qg2+ {[%emt 0:00:23]} 39. Kb3 {[%emt 0:04:49]} (39. Kc1 $142) 39... e5 {[%emt 0:00:09]} 40. exd4 {[%emt 0:00:12]} exd4 {[%emt 0:00:20]} 41. Re1 {[%emt 0:00:06]} (41. Bc2) 41... a5 {[%emt 0:01:28]} 42. Rxd4 {[%emt 0:02:28]} (42. Qc2 $142 Qd5+ 43. Kb2 axb4 44. Rdd1) 42... Rxd4 {[%emt 0:05:48]} (42... Qxh3+ 43. Qd3 Qxd3+ 44. Rxd3 Rxd3+ 45. Bxd3 axb4 46. Kxb4 $11) 43. Qxd4 {[%emt 0:00:04]} axb4 $2 {[%emt 0:00:06]} (43... Qxh3+ 44. Qe3 Qf3 (44... Qxg4 45. Qe8+ Rxe8 46. Rxe8#) 45. Qxf3 Nxf3 46. Rd1 $16) (43... Nf3 $19 44. Qd3 Nd2+ (44... Nxe1 $2 45. Qh7+ Kf8 46. Qh8+ Ke7 47. Qxa8 $19) 45. Kc2 Nxb1+ 46. Kxb1 axb4) 44. Qe4 $2 {[%emt 0:04:39]} (44. Rd1 $17 {was called for.} g6 (44... Qxh3+ 45. Rd3 $17) 45. Qxb4) 44... Qg3+ {[%emt 0:00:42]} (44... Ra3+ 45. Kc4 g6 (45... Qxh3 46. Qe8#) (45... Rc3+ $2 46. Kb5 $18) 46. Qxg2 Nxg2 47. Kxb4 (47. Re7 Rxh3 48. Rxb7 Rc3+ 49. Kxb4 Rc1 $16) 47... Rxh3 48. Re7 $14) (44... Qxh3+ $19 45. Kc4 g6 46. Qxb7 Qc3+ (46... Qxg4+ $2 47. Re4 $19) 47. Kb5 Rf8) 45. Kc4 $17 {[%emt 0:00:49][%cal Oe4e8] Qe8+! would kill now.} g6 {[%emt 0:02:55] aiming for ...Qc3+. Really sharp! Black is more active.} (45... Qxh3 46. Qh7+ Kf8 47. Qh8#) 46. Qxb7 $2 {[%emt 0:03:15]} (46. Re3 $17 {only move.} Qc7 47. Qd5) 46... Rb8 {[%emt 0:00:42]} 47. Re3 {[%emt 0:00:33]} Qf4+ $1 {[%emt 0:00:06]} 48. Qe4 {[%emt 0:00:06] [#] Hoping for Qxf4.} Qf1+ $1 {[%emt 0:00:05]} 49. Qd3 {[%emt 0:00:52]} (49. Bd3 $142 Qf6 50. Qe5 Qa6+ 51. Kb3 Qa3+ 52. Kc2 Qxa2+ 53. Kc1) 49... Qc1+ {[%emt 0:01:46]} 50. Bc2 {[%emt 0:03:43] [#]} Ng2 $1 {[%emt 0:00:08]} 51. Re7 {[%emt 0:03:15]} Nf4 $2 {[%emt 0:01:41]} (51... Ne1 $19 {and Black stays clearly on top.} 52. Qe4 Nxc2 53. Re8+ Rxe8 54. Qxe8+ Kg7 55. Qe5+ Kh7) 52. Qb3 $2 {[%emt 0:02:32]} (52. Qe4 $17 Kf8 53. Ra7 Qf1+ 54. Bd3 Nxd3 55. Qxd3 Qc1+ (55... Qxd3+ 56. Kxd3 b3 57. axb3 $16) 56. Kb3) 52... Qf1+ {[%emt 0:00:52]} 53. Bd3 {[%emt 0:00:35]} Nxd3 {[%emt 0:00:16]} 54. Qxd3 {[%emt 0:00:08]} Qc1+ {[%emt 0:00:03]} 55. Kb3 {[%emt 0:00:23]} Qa3+ {[%emt 0:00:05]} (55... Qxc5 $2 56. Rd7 $19) 56. Kc4 {[%emt 0:00:15]} Qa6+ {[%emt 0:00:08]} 0-1

[Event "US Masters 2024"]
[Site "Charlotte"]
[Date "2024.11.29"]
[Round "4.24"]
[White "Dinesh, Abinav"]
[Black "Belenkaya, Dina"]
[Result "0-1"]
[ECO "A45"]
[WhiteElo "2038"]
[BlackElo "2151"]
[Annotator "RC"]
[PlyCount "66"]
[EventDate "2024.09.23"]
[EventType "swiss"]
[EventCountry "USA"]
[SourceTitle "playchess.com"]
[Source "ChessBase"]
[SourceQuality "1"]
[TimeControl "5400+30"]

1. d4 {[%emt 0:00:02]} Nf6 {[%emt 0:06:58]} 2. Bf4 {[%emt 0:00:13]} d6 {[%emt 0:00:38]} 3. e3 {[%emt 0:02:13]} h6 {[%emt 0:00:20]} 4. h3 {[%emt 0:03:47]} Nbd7 {[%emt 0:04:07]} 5. Nf3 {[%emt 0:01:59]} e6 {[%emt 0:02:04]} 6. c4 {[%emt 0:03:52]} g6 {[%emt 0:02:39]} 7. Nc3 {[%emt 0:03:12]} Bg7 {[%emt 0:00:26]} 8. Bd3 {[%emt 0:17:02]} b6 {[%emt 0:02:24]} 9. O-O {[%emt 0:06:56]} Bb7 {[%emt 0:00:53]} 10. e4 {[%emt 0:06:36]} Nh5 {[%emt 0:01:23]} 11. Be3 {[%emt 0:02:13]} e5 {[%emt 0:00:52]} 12. d5 {[%emt 0:01:20]} Nf4 {[%emt 0:03:18]} 13. Kh2 {[%emt 0:47:35]} Bc8 {[%emt 1:10:58]} 14. g3 {[%emt 0:00:30]} Nxd3 {[%emt 0:00:00]} 15. Qxd3 {[%emt 0:00:00]} Nc5 {[%emt 0:00:00]} 16. Qc2 {[%emt 0:00:00]} f5 {[%emt 0:00:00]} 17. Bxc5 {[%emt 0:00:00]} bxc5 {[%emt 0:00:00]} 18. Nh4 {[%emt 0:00:00]} Qf6 {[%emt 0:00:00]} 19. Nb5 {[%emt 0:00:00]} Kd8 {[%emt 0:00:00]} 20. Qd2 {[%emt 0:00:00]} a5 {[%emt 0:00:00]} 21. Ng2 {[%emt 0:00:00]} h5 {[%emt 0:00:00]} 22. Rae1 {[%emt 0:00:00]} h4 {[%emt 0:00:00]} 23. gxh4 {[%emt 0:00:00]} f4 {[%emt 0:00:00]} 24. f3 {[%emt 0:00:00]} Qe7 {[%emt 0:00:00]} 25. Rh1 {[%emt 0:00:00]} Bf6 {[%emt 0:00:00]} 26. Qf2 {[%emt 0:00:00]} Bxh4 {[%emt 0:00:00]} 27. Nxh4 {[%emt 0:00:00]} Rxh4 {[%emt 0:00:00]} 28. Kg2 {[%emt 0:00:00]} Bxh3+ {[%emt 0:00:00]} 29. Rxh3 {[%emt 0:00:00]} Qg5+ {[%emt 0:00:00]} 30. Kh2 {[%emt 0:00:00]} Rxh3+ {[%emt 0:00:00]} 31. Kxh3 {[%emt 0:00:00]} Kd7 {[%emt 0:00:00]} 32. Qh4 {[%emt 0:00:00]} Rh8 {[%emt 0:00:00]} 33. Qxh8 {[%emt 0:00:00]} Qg3# {[%emt 0:00:00]} 0-1